bitfinex-derivatives/quotes_SOLF0:USTF0_20250714
["timestamp","ask_amount","ask_price","bid_price","bid_amount"]
[1752500644021,181.38,167.13,167.08,12.69419616]
[1752500644424,181.38,167.13,166.98,529.4143]
[1752500644634,181.38,167.13,167.08,6.71059616]
[1752500645030,181.38,167.13,167.1,6.71059616]
[1752500645231,181.32,167.18,167.09,6.71059616]
[1752500645623,181.32,167.18,167.0,6.71059616]
[1752500645828,517.58,167.22,167.13,6.71059616]
[1752500646029,6.71059616,167.25,167.15,12.69149616]
[1752500646332,6.71059616,167.23,167.03,11.9707]
[1752500646528,6.71059616,167.19,167.09,6.71059616]
[1752500646724,188.03059616,167.19,167.12,5.9821]
[1752500647028,188.03059616,167.19,167.09,6.71059616]
[1752500647228,188.03059616,167.19,167.1,5.9828]
[1752500647438,188.03059616,167.19,167.09,6.71059616]
[1752500647735,181.32,167.19,167.11,6.71059616]
[1752500649022,181.32,167.19,167.1,6.71059616]
[1752500649426,6.71059616,167.18,167.02,11.9714]
[1752500649629,6.71059616,167.18,167.07,6.71059616]
[1752500650037,6.71059616,167.18,167.09,5.9831]
[1752500650232,6.71059616,167.18,167.07,6.71059616]
[1752500650635,6.71059616,167.16,167.07,6.71059616]
[1752500650833,6.71059616,167.16,167.05,6.71059616]
[1752500651036,6.71059616,167.16,167.07,6.71059616]
[1752500651640,181.32,167.19,166.98,517.44]
[1752500651641,6.71059616,167.14,167.06,5.9842]
[1752500651938,6.71059616,167.14,167.03,6.71059616]
[1752500652135,6.71059616,167.18,167.11,5.9826]
[1752500652730,6.71059616,167.18,167.12,5.9822]
[1752500652940,6.71059616,167.18,167.09,6.71059616]
[1752500653836,6.71059616,167.18,167.12,5.9822]
[1752500654036,6.71059616,167.18,167.09,6.71059616]
[1752500654241,181.32,167.19,167.09,6.71059616]
[1752500654536,6.71059616,167.14,167.03,6.71059616]
[1752500654736,6.71059616,167.12,167.04,5.95755518]
[1752500654939,6.71059616,167.12,167.05,5.95728802]
[1752500655139,6.71059616,167.1,166.99,6.71059616]
[1752500655340,6.71059616,167.1,167.02,5.9856]
[1752500655537,6.71059616,167.1,166.99,6.71059616]
[1752500655731,6.71059616,167.1,166.98,517.44]
[1752500655938,6.71059616,167.06,166.99,11.94908606]
[1752500656134,6.71059616,167.1,166.95,6.71059616]
[1752500656340,6.71059616,167.07,167.01,5.986]
[1752500656539,6.71059616,167.07,166.97,6.71059616]
[1752500656739,6.71059616,167.07,166.98,5.9646255]
[1752500656939,6.71059616,167.07,167.0,5.9865]
[1752500657138,6.71059616,167.07,166.97,6.71059616]
[1752500657440,6.71059616,167.07,166.99,5.9867]
[1752500657632,6.71059616,167.07,166.97,6.71059616]
[1752500658034,6.71059616,167.07,167.0,5.9863]
[1752500658236,6.71059616,167.09,166.99,6.71059616]
[1752500658440,187.93059616,167.11,167.04,5.9851]
[1752500658838,187.93059616,167.11,167.01,6.71059616]
[1752500659032,181.22,167.11,167.04,5.9851]
[1752500659237,187.93059616,167.11,167.01,6.71059616]
[1752500659440,187.93059616,167.11,167.03,5.9852]
[1752500659642,187.93059616,167.11,167.01,6.71059616]
[1752500659944,181.22,167.11,167.06,5.9842]
[1752500660139,181.22,167.11,167.04,6.71059616]
[1752500660536,181.22,167.11,167.08,5.9834]
[1752500660739,181.22,167.11,167.04,6.71059616]
[1752500660937,181.22,167.11,167.02,6.71059616]
[1752500661439,181.22,167.11,166.96,11.9759]
[1752500661638,181.22,167.11,167.04,5.9852]
[1752500661841,181.22,167.11,167.01,6.71059616]
[1752500662638,181.24,167.18,167.07,6.71059616]
[1752500662842,6.71059616,167.17,167.0,6.71059616]
[1752500663145,181.24,167.17,167.08,6.71059616]
[1752500663342,181.24,167.17,167.1,5.9829]
[1752500663541,181.24,167.17,167.07,6.71059616]
[1752500663842,181.24,167.17,167.0,6.71059616]
[1752500663843,181.24,167.17,167.09,6.71059616]
[1752500664541,181.24,167.17,167.11,5.9825]
[1752500664742,6.71059616,167.19,167.09,6.71059616]
[1752500665142,698.42,167.2,167.11,6.71059616]
[1752500666345,6.71059616,167.19,167.09,6.71059616]
[1752500666748,6.71059616,167.19,167.1,5.9829]
[1752500666946,6.71059616,167.19,167.09,6.71059616]
[1752500668250,6.71059616,167.19,167.1,5.99336418]
[1752500668445,6.71059616,167.19,167.09,6.71059616]
[1752500668651,6.71059616,167.19,167.1,5.99360592]
[1752500668945,6.71059616,167.17,167.07,6.71059616]
[1752500669153,6.71059616,167.17,167.08,5.99356903]
[1752500669348,698.42,167.2,167.09,5.99356903]
[1752500669542,6.68666036,167.19,167.1,5.99356903]
[1752500669745,6.68666036,167.19,167.11,5.99939622]
[1752500669945,517.2,167.2,167.12,6.68666036]
[1752500670150,181.18,167.19,167.12,6.68666036]
[1752500670351,181.18,167.19,167.15,5.981]
[1752500670546,181.18,167.19,167.12,6.68666036]
[1752500670754,181.18,167.19,167.14,6.68666036]
[1752500670952,181.18,167.19,167.16,5.9808]
[1752500671254,181.18,167.19,167.14,6.68666036]
[1752500671557,181.18,167.19,167.14,5.9814]
[1752500671748,181.18,167.19,167.12,6.68666036]
[1752500671946,181.18,167.19,167.12,5.982]
[1752500672146,181.18,167.19,167.1,6.68666036]
[1752500672354,181.18,167.19,167.11,6.00835027]
[1752500672554,181.18,167.19,167.12,6.0110528]
[1752500672755,181.18,167.19,167.1,6.68666036]
[1752500673051,181.18,167.19,167.11,6.00961052]
[1752500673248,181.18,167.19,167.12,6.00981877]
[1752500673454,181.18,167.19,167.13,6.00981877]
[1752500673653,181.18,167.19,167.14,6.00981877]
[1752500673855,181.18,167.19,167.15,6.00981877]
[1752500674054,181.18,167.19,167.1,6.68213103]
[1752500674255,181.18,167.19,167.14,5.9814]
[1752500674452,181.18,167.19,167.15,6.01636991]
[1752500674655,181.18,167.19,167.14,5.9814]
[1752500674954,181.18,167.19,167.15,6.02174107]
[1752500675157,181.18,167.19,167.1,6.68213103]
[1752500675357,181.18,167.19,167.11,6.02791176]
[1752500675654,181.18,167.19,167.12,12.71004279]
[1752500675854,181.18,167.19,167.13,6.02791176]
[1752500676156,181.18,167.19,167.14,6.02791176]
[1752500676456,181.18,167.19,167.15,6.02791176]
[1752500676653,181.18,167.19,167.16,6.02791176]
[1752500676857,181.18,167.19,167.11,6.68213103]
[1752500677051,181.18,167.19,167.12,6.03493584]
[1752500677251,181.18,167.19,167.16,5.9806]
[1752500677453,517.2,167.2,167.13,12.71706687]
[1752500677454,517.2,167.2,167.17,6.03493584]
[1752500677756,698.32,167.2,167.18,6.03493584]
[1752500677954,181.12,167.2,167.19,6.03493584]
[1752500679553,181.12,167.2,167.03,18.58682624]
[1752500679554,186.07495745,167.2,167.14,5.9816]
[1752500679748,4.95495745,167.19,167.15,6.02801978]
[1752500679953,181.12,167.2,167.16,6.02801978]
[1752500680154,181.12,167.2,167.17,6.02801978]
[1752500680356,181.12,167.2,167.18,6.02801978]
[1752500680659,181.12,167.2,167.15,5.9812]
[1752500680862,181.12,167.2,167.16,6.02832107]
[1752500681155,181.12,167.2,167.17,6.02832107]
[1752500681360,181.12,167.2,167.18,6.02832107]
[1752500681657,181.12,167.2,167.19,6.02832107]
[1752500681856,181.12,167.2,167.13,6.68213103]
[1752500682058,181.12,167.2,167.14,6.02667033]
[1752500682351,181.12,167.2,167.15,6.68213103]
[1752500682561,4.95495745,167.22,167.16,6.0258721]
[1752500682751,4.95495745,167.23,167.17,6.0258721]
[1752500682955,4.95495745,167.24,167.18,6.0258721]
[1752500683257,181.06,167.25,167.2,5.9793]
[1752500683561,181.06,167.25,167.21,6.0258721]
[1752500683860,181.06,167.25,167.22,6.0258721]
[1752500684063,192.69708848,167.25,167.15,6.68213103]
[1752500684360,6.68213103,167.23,167.16,6.01539596]
[1752500684555,6.68213103,167.23,167.17,6.01539596]
[1752500684763,6.68213103,167.23,167.13,6.68213103]
[1752500684964,6.68213103,167.23,167.14,6.01520295]
[1752500685257,11.63708848,167.24,167.15,6.01520295]
[1752500685458,11.63708848,167.24,167.16,6.01520295]
[1752500685653,11.63708848,167.24,167.17,6.01520295]
[1752500685859,11.63708848,167.24,167.18,6.01520295]
[1752500686061,4.95495745,167.24,167.19,6.01520295]
[1752500686261,4.95495745,167.24,167.18,5.9799]
[1752500686462,4.95495745,167.24,167.19,6.0140381]
[1752500686762,11.63708848,167.24,167.18,5.9799]
[1752500686956,4.95495745,167.23,167.19,11.99384421]
[1752500687158,4.95495745,167.23,167.19,5.9798]
[1752500687559,4.95495745,167.23,167.14,6.68213103]
[1752500687760,11.63708848,167.24,167.15,6.01376113]
[1752500687956,4.95495745,167.23,167.17,5.9805]
[1752500688263,4.95495745,167.23,167.18,6.01376113]
[1752500688564,6.68213103,167.22,167.16,5.9808]
[1752500688761,6.68213103,167.22,167.17,6.01341975]
[1752500688962,6.68213103,167.22,167.18,6.01341975]
[1752500689162,6.68213103,167.2,167.09,516.94]
[1752500689462,11.63708848,167.18,167.1,6.01472413]
[1752500689761,11.63708848,167.18,167.12,5.9821]
[1752500689963,11.63708848,167.18,167.13,6.01472413]
[1752500690157,6.68213103,167.16,167.1,5.9828]
[1752500690457,11.63708848,167.16,167.11,6.01912193]
[1752500690662,6.68213103,167.16,167.06,6.68213103]
[1752500690859,6.68213103,167.16,167.07,6.01954218]
[1752500691057,6.68213103,167.16,167.08,6.01954218]
[1752500691258,6.68213103,167.16,167.06,6.68213103]
[1752500691259,6.68213103,167.16,167.09,12.00284218]
[1752500691452,6.68213103,167.14,167.04,6.68213103]
[1752500691652,187.72213103,167.14,167.09,5.9833]
[1752500692163,181.04,167.14,167.1,6.01995906]
[1752500692365,181.02,167.18,167.12,6.68213103]
[1752500692655,181.02,167.18,167.13,6.01995906]
[1752500692861,181.02,167.18,167.15,5.9812]
[1752500693052,181.02,167.18,167.12,6.68213103]
[1752500693252,181.02,167.18,167.13,6.01385487]
[1752500693455,181.02,167.18,167.14,6.01385487]
[1752500693663,185.97495745,167.2,167.12,6.68213103]
[1752500693860,185.97495745,167.2,167.13,6.01408593]
[1752500694065,185.97495745,167.2,167.14,6.01408593]
[1752500694260,185.97495745,167.2,167.12,6.68213103]
[1752500694464,185.97495745,167.2,167.13,6.01424017]
[1752500694664,181.02,167.2,167.14,6.01424017]
[1752500694863,4.95495745,167.21,167.14,5.9814]
[1752500695060,185.97495745,167.2,167.14,5.9814]
[1752500695366,181.02,167.2,167.14,5.9814]
[1752500695563,185.97495745,167.2,167.14,5.9814]
[1752500695764,181.02,167.2,167.14,5.9814]
[1752500696462,185.97495745,167.2,167.14,5.9814]
[1752500697164,181.02,167.2,167.14,5.9814]
[1752500697361,4.95495745,167.2,167.11,6.6825196]
[1752500697560,4.95495745,167.24,167.15,6.6825196]
[1752500697968,4.95495745,167.24,167.18,5.9801]
[1752500698973,4.95495745,167.24,167.2,5.9794]
[1752500699470,4.95495745,167.24,167.19,6.6825196]
[1752500699471,702.89495745,167.25,167.19,6.6825196]
[1752500699671,702.89495745,167.25,167.22,5.9786]
[1752500699867,702.89495745,167.25,167.21,6.6825196]
[1752500700068,185.95495745,167.25,167.21,6.6825196]
[1752500700268,181.0,167.25,167.19,6.6825196]
[1752500700672,181.0,167.25,167.21,5.9789]
[1752500701369,181.0,167.25,167.11,516.94]
[1752500701570,181.0,167.25,167.16,6.6825196]
[1752500701869,4.95495745,167.24,167.16,6.6825196]
[1752500702068,4.95495745,167.24,167.18,6.67823746]
[1752500702271,4.95495745,167.24,167.23,5.9784]
[1752500702572,4.95495745,167.27,167.22,6.67823746]
[1752500702766,4.95495745,167.28,167.25,5.9777]
[1752500702966,4.95495745,167.3,167.16,11.9616]
[1752500703171,4.95495745,167.3,167.24,6.67823746]
[1752500703470,4.95495745,167.3,167.26,6.67823746]
[1752500703670,6.60660994,167.32,167.26,6.67823746]
[1752500703671,4.95495745,167.32,167.26,6.67823746]
[1752500704173,4.95495745,167.32,167.27,14.964627]
[1752500704370,4.95495745,167.33,167.27,5.9767]
[1752500704580,4.95495745,167.31,167.23,6.67823746]
[1752500704770,4.95495745,167.31,167.24,8.98601902]
[1752500705075,4.95495745,167.29,167.21,6.67823746]
[1752500705276,4.95495745,167.29,167.22,9.2740937]
[1752500705468,4.95495745,167.29,167.23,9.2740937]
[1752500705669,4.95495745,167.29,167.24,6.2734998]
[1752500705968,4.95495745,167.29,167.23,5.9782]
[1752500706169,4.95495745,167.29,167.24,6.27317355]
[1752500706372,4.95495745,167.28,167.23,5.9782]
[1752500706566,187.59823746,167.3,167.21,6.67823746]
[1752500706567,4.95495745,167.29,167.24,6.27433651]
[1752500706770,180.92,167.3,167.25,12.95257397]
[1752500706771,185.87495745,167.3,167.25,12.95257397]
[1752500706975,180.92,167.3,167.26,6.27433651]
[1752500707168,180.92,167.3,167.25,6.67823746]
[1752500707473,180.92,167.3,167.27,6.67823746]
[1752500707675,180.92,167.3,167.28,6.27482147]
[1752500707973,4.95495745,167.33,167.29,6.26951641]
[1752500708179,4.95495745,167.33,167.27,6.67823746]
[1752500708367,185.85495745,167.34,167.28,9.27118856]
[1752500708572,4.95495745,167.33,167.29,6.27064663]
[1752500708768,4.95495745,167.33,167.27,5.9767]
[1752500708970,4.95495745,167.33,167.28,6.23911633]
[1752500709177,4.95495745,167.33,167.27,5.9767]
[1752500709373,4.95495745,167.33,167.28,6.2359525]
[1752500709576,4.95495745,167.33,167.26,5.9772]
[1752500709777,4.95495745,167.32,167.27,6.2376032]
[1752500709966,6.67823746,167.28,167.12,16.92654468]
[1752500710170,180.88,167.27,167.17,6.67823746]
[1752500710373,185.83495745,167.27,167.18,9.24169858]
[1752500710671,185.83495745,167.27,167.21,5.9789]
[1752500710871,6.67823746,167.26,167.22,6.24144634]
[1752500711076,11.63319491,167.26,167.19,5.9796]
[1752500711272,4.95495745,167.25,167.2,6.2437251]
[1752500711480,4.95495745,167.26,167.21,6.2437251]
[1752500711680,185.83495745,167.27,167.19,6.67823746]
[1752500711877,185.83495745,167.27,167.2,9.24188259]
[1752500712077,185.83495745,167.27,167.21,15.92012005]
[1752500712276,185.83495745,167.27,167.22,9.24188259]
[1752500712478,4.95495745,167.26,167.17,6.67823746]
[1752500712676,187.55823746,167.27,167.21,5.9789]
[1752500712876,192.51319491,167.27,167.22,6.2431469]
[1752500713076,192.51319491,167.27,167.23,6.2431469]
[1752500713280,192.51319491,167.27,167.21,5.9789]
[1752500713580,192.51319491,167.27,167.22,12.22071173]
[1752500713779,192.51319491,167.27,167.23,6.24201173]
[1752500713982,192.51319491,167.27,167.17,6.67823746]
[1752500714183,180.84,167.28,167.21,6.67823746]
[1752500714382,180.84,167.28,167.22,9.24269467]
[1752500714575,180.84,167.28,167.13,11.9637]
[1752500714576,185.79495745,167.28,167.23,9.24269467]
[1752500714877,180.84,167.28,167.24,9.24018184]
[1752500715078,180.84,167.28,167.27,5.977]
[1752500715382,4.95495745,167.34,167.27,12.91528298]
[1752500715580,4.95495745,167.34,167.28,9.23409962]
[1752500715782,4.95495745,167.35,167.29,9.23358202]
[1752500716079,4.95495745,167.35,167.3,9.23358202]
[1752500716279,4.95495745,167.35,167.31,6.23704552]
[1752500716480,4.95495745,167.35,167.29,5.976]
[1752500716680,4.95495745,167.35,167.3,6.22889387]
[1752500716876,4.95495745,167.35,167.31,6.22889387]
[1752500717184,185.79495745,167.36,167.29,6.67823746]
[1752500717378,185.79495745,167.36,167.3,9.2237631]
[1752500717575,180.84,167.36,167.31,9.2237631]
[1752500717775,180.84,167.36,167.32,6.22920908]
[1752500717975,180.84,167.36,167.31,5.9752]
[1752500718175,180.84,167.36,167.32,6.22623502]
[1752500718372,6.67823746,167.35,167.29,5.9762]
[1752500718576,180.84,167.36,167.3,6.22396751]
[1752500718779,180.84,167.36,167.31,6.22396751]
[1752500718980,180.84,167.36,167.3,5.9757]
[1752500719180,180.84,167.36,167.31,6.22409533]
[1752500719382,180.84,167.36,167.29,6.67823746]
[1752500719580,180.84,167.36,167.31,5.9753]
[1752500719882,180.84,167.36,167.32,6.22154133]
[1752500720080,90.34809349,167.39,167.29,6.67823746]
[1752500720283,185.73495745,167.4,167.33,6.67823746]
[1752500720583,192.41319491,167.4,167.34,6.21924207]
[1752500720784,192.41319491,167.4,167.31,6.67823746]
[1752500720984,180.78,167.4,167.33,6.67823746]
[1752500721180,180.78,167.4,167.34,9.20037689]
[1752500721379,180.78,167.4,167.35,6.21211348]
[1752500721574,180.78,167.4,167.33,6.67823746]
[1752500721774,180.78,167.4,167.35,5.9738]
[1752500722182,180.78,167.4,167.33,6.67823746]
[1752500722378,180.78,167.4,167.34,9.19208252]
[1752500722584,180.78,167.4,167.35,6.20651643]
[1752500722885,180.78,167.4,167.36,5.9737]
[1752500723086,180.78,167.4,167.35,6.67823746]
[1752500723581,4.95495745,167.45,167.37,6.67823746]
[1752500723885,180.72,167.44,167.39,5.9724]
[1752500724179,180.72,167.44,167.37,6.67823746]
[1752500724384,180.72,167.44,167.39,5.9726]
[1752500725084,180.72,167.44,167.3,6.67823746]
[1752500725281,180.72,167.44,167.37,6.67823746]
[1752500725477,180.72,167.44,167.39,5.9726]
[1752500725681,180.72,167.44,167.37,6.67823746]
[1752500725882,516.62,167.47,167.39,6.67823746]
[1752500726085,516.62,167.47,167.41,6.67823746]
[1752500726387,180.68,167.48,167.41,6.67823746]
[1752500726585,180.68,167.48,167.45,5.9703]
[1752500726786,180.68,167.48,167.41,6.67823746]
[1752500727289,180.68,167.48,167.39,6.67823746]
[1752500727488,180.68,167.48,167.4,6.17574306]
[1752500727785,180.68,167.48,167.39,6.67823746]
[1752500727988,180.68,167.48,167.4,6.17574095]
[1752500728186,180.68,167.48,167.44,5.9708]
[1752500728388,180.68,167.48,167.41,6.67823746]
[1752500728686,180.68,167.48,167.44,5.9707]
[1752500728991,180.68,167.48,167.41,6.67823746]
[1752500729179,180.68,167.48,167.45,5.9703]
[1752500729378,180.68,167.48,167.41,6.67823746]
[1752500729785,180.68,167.48,167.39,6.67823746]
[1752500730179,180.68,167.48,167.43,5.971]
[1752500730385,187.35823746,167.48,167.37,6.67823746]
[1752500730581,6.67823746,167.46,167.37,6.67823746]
[1752500730782,6.67823746,167.42,167.27,11.9537]
[1752500730987,180.62,167.41,167.31,6.67823746]
[1752500731288,180.62,167.41,167.32,6.16898553]
[1752500731496,6.67823746,167.4,167.31,6.67823746]
[1752500731693,17.99,167.58,167.34,11.9489]
[1752500731991,6.66441646,167.51,167.41,6.66441646]
[1752500732183,23.987,167.56,167.4,6.6597559]
[1752500732184,19.02937996,167.56,167.4,6.6597559]
[1752500732383,6.6597559,167.52,167.4,6.6597559]
[1752500732584,6.6597559,167.52,167.42,6.6597559]
[1752500733297,6.6597559,167.52,167.44,5.9705]
[1752500733595,6.6597559,167.52,167.41,6.6597559]
[1752500733793,1.03937996,167.56,167.43,6.6574202]
[1752500733996,1.03937996,167.56,167.45,6.6574202]
[1752500734198,180.56,167.55,167.47,6.65492523]
[1752500734391,180.56,167.55,167.49,5.9689]
[1752500734792,180.56,167.55,167.5,5.9686]
[1752500735096,180.56,167.55,167.47,6.65492523]
[1752500735993,180.56,167.55,167.48,5.9692]
[1752500736196,180.56,167.55,167.45,6.65492523]
[1752500736497,180.56,167.55,167.41,6.65492523]
[1752500736695,6.65492523,167.52,167.41,6.65492523]
[1752500736898,516.24,167.57,167.45,6.65603271]
[1752500737204,180.52,167.56,167.47,6.65603271]
[1752500737505,180.52,167.56,167.48,6.65373744]
[1752500737806,180.52,167.56,167.5,5.9686]
[1752500738007,4.94588397,167.64,167.54,6.65258201]
[1752500738200,180.52,167.63,167.54,6.65258201]
[1752500739000,180.52,167.62,167.58,5.9657]
[1752500739504,180.52,167.62,167.54,6.65258201]
[1752500739896,180.52,167.62,167.58,5.9656]
[1752500740096,180.52,167.62,167.56,6.65258201]
[1752500740297,180.52,167.63,167.5,6.65258201]
[1752500740503,180.52,167.63,167.57,6.64651129]
[1752500740905,180.52,167.63,167.61,5.9645]
[1752500741109,516.1,167.65,167.59,6.64651129]
[1752500741299,180.48,167.69,167.61,6.64651129]
[1752500741605,1.24898,167.72,167.63,6.64651129]
[1752500741801,180.48,167.71,167.53,515.96]
[1752500742002,180.48,167.71,167.65,6.64651129]
[1752500742603,180.48,167.71,167.63,6.64286551]
[1752500742910,180.48,167.71,167.65,6.64286551]
[1752500743098,180.48,167.71,167.68,5.9623]
[1752500743301,1.24898,167.72,167.69,6.64286551]
[1752500743503,1.24898,167.72,167.71,6.64286551]
[1752500743801,1.24898,167.72,167.69,6.64286551]
[1752500744510,1.24898,167.72,167.67,6.64286551]
[1752500744704,1.24898,167.72,167.6,6.64286551]
[1752500744904,1.24898,167.72,167.65,6.64286551]
[1752500745108,1.24898,167.72,167.67,6.64286551]
[1752500745303,1.24898,167.72,167.65,6.64286551]
[1752500746007,1.24898,167.72,167.63,6.64286551]
[1752500746210,1.24898,167.72,167.6,6.64286551]
[1752500746400,1.24898,167.72,167.65,6.64286551]
[1752500746806,1.24898,167.72,167.67,5.9627]
[1752500747113,1.24898,167.72,167.63,6.64286551]
[1752500747310,1.24898,167.72,167.62,6.64286551]
[1752500747506,1.24898,167.72,167.64,6.64286551]
[1752500748001,1.24898,167.72,167.68,5.962]
[1752500748205,1.24898,167.72,167.66,6.64286551]
[1752500748411,1.24898,167.72,167.69,5.9617]
[1752500748613,1.24898,167.72,167.66,6.64286551]
[1752500748812,1.24898,167.72,167.68,6.64286551]
[1752500749012,1.24898,167.72,167.71,5.9613]
[1752500749209,1.24898,167.72,167.71,12.60416551]
[1752500750708,6.64286551,167.81,167.71,12.60416551]
[1752500750709,696.7,167.82,167.71,6.64286551]
[1752500750915,515.8,167.82,167.73,6.64286551]
[1752500751112,515.8,167.82,167.76,5.9594]
[1752500751311,515.8,167.82,167.73,6.64286551]
[1752500751712,522.43407823,167.82,167.74,5.9601]
[1752500751910,522.43407823,167.82,167.72,6.63407823]
[1752500752512,515.8,167.82,167.72,6.63407823]
[1752500752710,515.8,167.82,167.74,6.63407823]
[1752500752910,515.8,167.82,167.76,5.9593]
[1752500753212,515.8,167.82,167.74,6.63407823]
[1752500753413,180.82,167.83,167.75,5.9598]
[1752500753609,6.63407823,167.82,167.72,6.63407823]
[1752500753813,6.63407823,167.82,167.76,5.9592]
[1752500754013,180.82,167.83,167.74,6.63407823]
[1752500754418,6.63407823,167.84,167.75,5.9597]
[1752500754718,187.27407823,167.84,167.75,5.9597]
[1752500754913,187.27407823,167.84,167.74,6.63407823]
[1752500755115,515.32,167.97,167.79,6.63407823]
[1752500755415,180.94,167.96,167.81,6.63407823]
[1752500755618,6.63407823,167.89,167.77,6.63407823]
[1752500755821,6.63143454,167.85,167.74,6.63143454]
[1752500756013,6.63143454,167.83,167.75,5.9596]
[1752500756213,6.63143454,167.81,167.64,181.06]
[1752500756520,181.08,167.85,167.75,5.9595]
[1752500756721,181.08,167.85,167.79,6.63143454]
[1752500756914,515.32,167.9,167.7,6.63143454]
[1752500756915,515.32,167.9,167.81,6.63143454]
[1752500757111,6.63143454,167.93,167.83,6.63143454]
[1752500757415,187.97143454,167.93,167.83,6.63143454]
[1752500757719,6.63143454,167.92,167.81,6.63143454]
[1752500758219,181.34,167.93,167.83,6.63143454]
[1752500758615,181.34,167.93,167.86,5.9557]
[1752500758918,181.34,167.93,167.84,6.62479622]
[1752500759125,181.34,167.93,167.86,6.62479622]
[1752500759818,181.34,167.93,167.88,6.62479622]
[1752500760321,515.32,167.98,167.9,6.62479622]
[1752500760823,6.62479622,168.0,167.8,6.62479622]
[1752500761018,181.16,168.0,167.92,6.62479622]
[1752500761218,515.06,168.04,167.82,11.9143]
[1752500761418,6.62479622,168.02,167.91,6.62479622]
[1752500761822,6.62479622,168.02,167.94,5.953]
[1752500762018,181.2,168.01,167.91,6.62479622]
[1752500762324,181.2,168.01,167.83,515.06]
[1752500762325,181.2,168.01,167.93,5.9533]
[1752500762512,6.624183,167.96,167.85,6.624183]
[1752500762718,6.624183,167.92,167.76,11.9189]
[1752500762931,6.624183,167.9,167.77,6.01521031]
[1752500763228,6.624183,167.9,167.74,515.06]
[1752500763524,6.62888642,167.87,167.74,515.06]
[1752500763823,515.06,167.94,167.78,6.62888642]
[1752500764026,6.62866303,167.9,167.8,6.62866303]
[1752500764219,6.62866303,167.88,167.78,6.62866303]
[1752500764418,6.63074812,167.87,167.78,5.9587]
[1752500764719,6.63074812,167.87,167.74,515.06]
[1752500764920,11.08592148,167.86,167.74,515.06]
[1752500765124,193.20592148,167.86,167.73,11.08592148]
[1752500765629,182.12,167.86,167.79,5.9583]
[1752500765922,182.12,167.86,167.73,11.08592148]
[1752500766124,182.12,167.86,167.76,11.08592148]
[1752500766327,533.05,167.94,167.76,11.08592148]
[1752500766523,11.08592148,167.9,167.8,5.958]
[1752500766824,11.08592148,167.87,167.69,181.96]
[1752500767124,11.08592148,167.84,167.71,11.08592148]
[1752500767326,182.08,167.83,167.71,11.08592148]
[1752500767517,182.08,167.83,167.74,5.9602]
[1752500767714,5.997,167.8,167.71,11.08592148]
[1752500767918,11.08592148,167.81,167.66,514.94]
[1752500768223,182.08,167.83,167.65,11.08592148]
[1752500768526,11.08592148,167.78,167.65,11.08592148]
[1752500768714,11.08592148,167.8,167.68,11.08592148]
[1752500768917,11.08592148,167.77,167.65,11.08592148]
[1752500769127,11.08592148,167.77,167.68,5.9623]
[1752500769328,182.18,167.76,167.63,11.08592148]
[1752500769624,182.18,167.76,167.72,5.9609]
[1752500769821,182.18,167.76,167.64,11.09791229]
[1752500770021,182.18,167.76,167.67,11.09791229]
[1752500770221,182.12,167.79,167.67,11.09791229]
[1752500771020,11.09622126,167.78,167.65,11.09622126]
[1752500771228,11.09622126,167.78,167.64,11.09622126]
[1752500771427,514.94,167.84,167.67,11.09622126]
[1752500771729,11.09622126,167.82,167.7,11.09622126]
[1752500772026,514.94,167.84,167.7,11.09622126]
[1752500772218,514.94,167.84,167.73,11.09622126]
[1752500772925,183.0,167.85,167.73,11.09622126]
[1752500773125,11.09622126,167.88,167.76,11.09622126]
[1752500773326,182.98,167.87,167.76,11.09622126]
[1752500774223,515.06,167.89,167.76,11.09622126]
[1752500774427,182.92,167.88,167.76,11.09622126]
[1752500775027,182.92,167.88,167.82,5.9572]
[1752500775227,182.92,167.88,167.76,11.09622126]
[1752500775428,182.92,167.88,167.82,5.9571]
[1752500775623,182.92,167.88,167.79,11.09622126]
[1752500776223,182.92,167.88,167.8,6.09214543]
[1752500776428,697.84,167.89,167.81,6.09214543]
[1752500776724,697.84,167.89,167.79,11.09622126]